Workbook

Sheet gminy
A1: OSTATECZNA KWOTA SUBWENCJI OGÓLNEJ, WPŁAT, DOCHODÓW Z PIT I CIT DLA GMIN NA 2024 R.
M3: w złotych
F4: Subwencja ogólna na 2024 r. | K4: Wpłaty na część równoważącą | L4: Planowane udziały w podatku PIT | M4: Planowane udziały w podatki CIT
A5: Kod gminy | D5: Typ i nazwa gminy | G5: z tego:
G6: Część oświatowa | H6: Część wyrównawcza | I6: Część równoważąca | J6: Część rozwojowa
A9: WK | B9: PK | C9: GK | D9: GT | E9: GNAZWA | F9: razem | G9: SUB_OSW | H9: WYRÓWNAWCZA pomn o 150%G | I9: SUMA_ROW | K9: WPLATA_G | L9: P_UDZIAL18 | M9: P_UDZIAL18
A10: 02 | B10: 01 | C10: 01 | D10: 1 | E10: BOLESŁAWIEC | F10: =G10+H10+I10+J10 -> 48180361 | G10: 45730700 | H10: 0 | I10: 0 | J10: 2449661 | K10: 0 | L10: 52174073 | M10: 12445144
A11: 02 | B11: 01 | C11: 02 | D11: 2 | E11: BOLESŁAWIEC | F11: =G11+H11+I11+J11 -> 22869856 | G11: 17863022 | H11: 4067790 | I11: 0 | J11: 939044 | K11: 0 | L11: 19385198 | M11: 336046
A12: 02 | B12: 01 | C12: 03 | D12: 2 | E12: GROMADKA | F12: 6409686 | G12: 6124695 | H12: 0 | I12: 0 | J12: 284991 | K12: 14924 | L12: 4473495 | M12: 661693
A13: 02 | B13: 01 | C13: 04 | D13: 3 | E13: NOWOGRODZIEC | F13: 26524345 | G13: 22386214 | H13: 2268926 | I13: 1081348 | J13: 787857 | K13: 0 | L13: 10386632 | M13: 861593
A14: 02 | B14: 01 | C14: 05 | D14: 2 | E14: OSIECZNICA | F14: 14560234 | G14: 11087580 | H14: 2984380 | I14: 59479 | J14: 428795 | K14: 0 | L14: 7158433 | M14: 496873
A15: 02 | B15: 01 | C15: 06 | D15: 2 | E15: WARTA BOLESŁAWIECKA | F15: 18131786 | G15: 14295428 | H15: 3346789 | I15: 7146 | J15: 482423 | K15: 0 | L15: 7533089 | M15: 67931
A16: 02 | B16: 02 | C16: 01 | D16: 1 | E16: BIELAWA | F16: 58334063 | G16: 34546128 | H16: 21973836 | I16: 125564 | J16: 1688535 | K16: 0 | L16: 28212719 | M16: 1813715
A17: 02 | B17: 02 | C17: 02 | D17: 1 | E17: DZIERŻONIÓW | F17: 43376696 | G17: 35979338 | H17: 5082213 | I17: 396649 | J17: 1918496 | K17: 0 | L17: 36925272 | M17: 4549790
A18: 02 | B18: 02 | C18: 03 | D18: 3 | E18: PIESZYCE | F18: 14989189 | G18: 9631778 | H18: 4640138 | I18: 176527 | J18: 540746 | K18: 0 | L18: 9664488 | M18: 628049
A19: 02 | B19: 02 | C19: 04 | D19: 1 | E19: PIŁAWA GÓRNA | F19: 10351935 | G19: 5316606 | H19: 4714298 | I19: 0 | J19: 321031 | K19: 0 | L19: 4192372 | M19: 729649
A20: 02 | B20: 02 | C20: 05 | D20: 2 | E20: DZIERŻONIÓW | F20: 16977494 | G20: 10858140 | H20: 5596142 | I20: 0 | J20: 523212 | K20: 0 | L20: 8966182 | M20: 100569
A21: 02 | B21: 02 | C21: 06 | D21: 2 | E21: ŁAGIEWNIKI | F21: 17562028 | G21: 10725276 | H21: 6432645 | I21: 0 | J21: 404107 | K21: 0 | L21: 6278826 | M21: 181320
A22: 02 | B22: 02 | C22: 07 | D22: 3 | E22: NIEMCZA | F22: 8801418 | G22: 5994660 | H22: 2427140 | I22: 40480 | J22: 339138 | K22: 0 | L22: 5601401 | M22: 105363
A23: 02 | B23: 03 | C23: 01 | D23: 1 | E23: GŁOGÓW | F23: 75972212 | G23: 71175616 | H23: 0 | I23: 345244 | J23: 4451352 | K23: 0 | L23: 109113820 | M23: 14078971
A24: 02 | B24: 03 | C24: 02 | D24: 2 | E24: GŁOGÓW | F24: 9528673 | G24: 7996634 | H24: 1030356 | I24: 0 | J24: 501683 | K24: 0 | L24: 13020605 | M24: 316876
A25: 02 | B25: 03 | C25: 03 | D25: 2 | E25: JERZMANOWA | F25: 7804960 | G25: 7351572 | H25: 0 | I25: 0 | J25: 453388 | K25: 5773915 | L25: 13968829 | M25: 39192
A26: 02 | B26: 03 | C26: 04 | D26: 2 | E26: KOTLA | F26: 8938227 | G26: 5636259 | H26: 3042636 | I26: 0 | J26: 259332 | K26: 0 | L26: 4651645 | M26: 374915
A27: 02 | B27: 03 | C27: 05 | D27: 2 | E27: PĘCŁAW | F27: 4918056 | G27: 2652666 | H27: 2085192 | I27: 0 | J27: 180198 | K27: 0 | L27: 1746258 | M27: 17372
A28: 02 | B28: 03 | C28: 06 | D28: 2 | E28: ŻUKOWICE | F28: 5832681 | G28: 4677829 | H28: 950799 | I28: 0 | J28: 204053 | K28: 0 | L28: 2970459 | M28: 33579
A29: 02 | B29: 04 | C29: 01 | D29: 3 | E29: GÓRA | F29: 35734010 | G29: 20826374 | H29: 13119500 | I29: 743229 | J29: 1044907 | K29: 0 | L29: 15492591 | M29: 1577202
A30: 02 | B30: 04 | C30: 02 | D30: 2 | E30: JEMIELNO | F30: 8324584 | G30: 4335129 | H30: 3810629 | I30: 193 | J30: 178633 | K30: 0 | L30: 1389956 | M30: 21668
A31: 02 | B31: 04 | C31: 03 | D31: 2 | E31: NIECHLÓW | F31: 11878022 | G31: 6752226 | H31: 4872810 | I31: 16303 | J31: 236683 | K31: 0 | L31: 2748845 | M31: 136639
A32: 02 | B32: 04 | C32: 04 | D32: 3 | E32: WĄSOSZ | F32: 12484944 | G32: 8142831 | H32: 3790867 | I32: 169996 | J32: 381250 | K32: 0 | L32: 5585198 | M32: 198656
A33: 02 | B33: 05 | C33: 01 | D33: 1 | E33: JAWOR | F33: 22300729 | G33: 21004140 | H33: 0 | I33: 0 | J33: 1296589 | K33: 0 | L33: 24961349 | M33: 8044422
A34: 02 | B34: 05 | C34: 02 | D34: 3 | E34: BOLKÓW | F34: 23134778 | G34: 11682864 | H34: 10633922 | I34: 289158 | J34: 528834 | K34: 0 | L34: 7225566 | M34: 160854
A35: 02 | B35: 05 | C35: 03 | D35: 2 | E35: MĘCINKA | F35: 7705819 | G35: 5494375 | H35: 1922646 | I35: 0 | J35: 288798 | K35: 0 | L35: 4707615 | M35: 171955
A36: 02 | B36: 05 | C36: 04 | D36: 2 | E36: MŚCIWOJÓW | F36: 7488443 | G36: 5069735 | H36: 2200670 | I36: 0 | J36: 218038 | K36: 0 | L36: 3168116 | M36: 82971
A37: 02 | B37: 05 | C37: 05 | D37: 2 | E37: PASZOWICE | F37: 9303985 | G37: 5605147 | H37: 3471489 | I37: 0 | J37: 227349 | K37: 0 | L37: 3718599 | M37: 66964
A38: 02 | B38: 05 | C38: 06 | D38: 2 | E38: WĄDROŻE WIELKIE | F38: 8671170 | G38: 5596916 | H38: 2847177 | I38: 0 | J38: 227077 | K38: 0 | L38: 3561994 | M38: 38346
A39: 02 | B39: 06 | C39: 01 | D39: 1 | E39: KARPACZ | F39: 6525376 | G39: 6237555 | H39: 0 | I39: 0 | J39: 287821 | K39: 1631804 | L39: 7642916 | M39: 573410
A40: 02 | B40: 06 | C40: 02 | D40: 1 | E40: KOWARY | F40: 14294587 | G40: 9900958 | H40: 3606837 | I40: 201135 | J40: 585657 | K40: 0 | L40: 10296633 | M40: 620810
A41: 02 | B41: 06 | C41: 03 | D41: 1 | E41: PIECHOWICE | F41: 4728468 | G41: 4368198 | H41: 0 | I41: 0 | J41: 360270 | K41: 0 | L41: 6814501 | M41: 167889
A42: 02 | B42: 06 | C42: 04 | D42: 1 | E42: SZKLARSKA PORĘBA | F42: 5425236 | G42: 5061775 | H42: 0 | I42: 0 | J42: 363461 | K42: 146753 | L42: 7033758 | M42: 368552
A43: 02 | B43: 06 | C43: 05 | D43: 2 | E43: JANOWICE WIELKIE | F43: 8290995 | G43: 4848934 | H43: 3193812 | I43: 10205 | J43: 238044 | K43: 0 | L43: 4051792 | M43: 152780
A44: 02 | B44: 06 | C44: 06 | D44: 2 | E44: JEŻÓW SUDECKI | F44: 11047918 | G44: 8052579 | H44: 2444206 | I44: 0 | J44: 551133 | K44: 0 | L44: 12938463 | M44: 78265
A45: 02 | B45: 06 | C45: 07 | D45: 2 | E45: MYSŁAKOWICE | F45: 16393750 | G45: 12601308 | H45: 3198487 | I45: 0 | J45: 593955 | K45: 0 | L45: 11060612 | M45: 275910
A46: 02 | B46: 06 | C46: 08 | D46: 2 | E46: PODGÓRZYN | F46: 15201440 | G46: 13997090 | H46: 703771 | I46: 0 | J46: 500579 | K46: 0 | L46: 10196235 | M46: 341236
A47: 02 | B47: 06 | C47: 09 | D47: 2 | E47: STARA KAMIENICA | F47: 10441036 | G47: 8631130 | H47: 1515681 | I47: 0 | J47: 294225 | K47: 0 | L47: 4220636 | M47: 106868
A48: 02 | B48: 07 | C48: 01 | D48: 1 | E48: KAMIENNA GÓRA | F48: 30346343 | G48: 18054006 | H48: 11171812 | I48: 99391 | J48: 1021134 | K48: 0 | L48: 16892548 | M48: 1401828
A49: 02 | B49: 07 | C49: 02 | D49: 2 | E49: KAMIENNA GÓRA | F49: 20969120 | G49: 13474595 | H49: 6976411 | I49: 0 | J49: 518114 | K49: 0 | L49: 9141909 | M49: 638915
A50: 02 | B50: 07 | C50: 03 | D50: 3 | E50: LUBAWKA | F50: 21470337 | G50: 10749292 | H50: 9826160 | I50: 317289 | J50: 577596 | K50: 0 | L50: 8824051 | M50: 610929
A51: 02 | B51: 07 | C51: 04 | D51: 2 | E51: MARCISZÓW | F51: 11060652 | G51: 4402374 | H51: 6431964 | I51: 0 | J51: 226314 | K51: 0 | L51: 2856543 | M51: 35206
A52: 02 | B52: 08 | C52: 01 | D52: 1 | E52: DUSZNIKI-ZDRÓJ | F52: 7305809 | G52: 6997670 | H52: 0 | I52: 65604 | J52: 242535 | K52: 0 | L52: 4920088 | M52: 377604
A53: 02 | B53: 08 | C53: 02 | D53: 1 | E53: KŁODZKO | F53: 39570494 | G53: 29179064 | H53: 8762709 | I53: 84631 | J53: 1544090 | K53: 0 | L53: 29296128 | M53: 2095783
A54: 02 | B54: 08 | C54: 03 | D54: 1 | E54: KUDOWA-ZDRÓJ | F54: 19746415 | G54: 14057589 | H54: 5135213 | I54: 28082 | J54: 525531 | K54: 0 | L54: 8281132 | M54: 493391
A55: 02 | B55: 08 | C55: 04 | D55: 1 | E55: NOWA RUDA | F55: 28799549 | G55: 14808556 | H55: 12632294 | I55: 127559 | J55: 1231140 | K55: 0 | L55: 21223261 | M55: 1590589
A56: 02 | B56: 08 | C56: 05 | D56: 1 | E56: POLANICA-ZDRÓJ | F56: 6069962 | G56: 5646097 | H56: 0 | I56: 40757 | J56: 383108 | K56: 0 | L56: 7541705 | M56: 200897
A57: 02 | B57: 08 | C57: 06 | D57: 3 | E57: BYSTRZYCA KŁODZKA | F57: 45598409 | G57: 27689011 | H57: 15074126 | I57: 1859023 | J57: 976249 | K57: 0 | L57: 14873477 | M57: 1224808
A58: 02 | B58: 08 | C58: 07 | D58: 2 | E58: KŁODZKO | F58: 36804329 | G58: 23686232 | H58: 11978564 | I58: 188660 | J58: 950873 | K58: 0 | L58: 15973208 | M58: 359992
A59: 02 | B59: 08 | C59: 08 | D59: 3 | E59: LĄDEK-ZDRÓJ | F59: 13391593 | G59: 6725489 | H59: 6111303 | I59: 124200 | J59: 430601 | K59: 0 | L59: 6715656 | M59: 198164
A60: 02 | B60: 08 | C60: 09 | D60: 2 | E60: LEWIN KŁODZKI | F60: 5287408 | G60: 2684600 | H60: 2424387 | I60: 10329 | J60: 168092 | K60: 0 | L60: 1077908 | M60: 5304
A61: 02 | B61: 08 | C61: 10 | D61: 3 | E61: MIĘDZYLESIE | F61: 16843542 | G61: 8026945 | H61: 8453051 | I61: 0 | J61: 363546 | K61: 0 | L61: 5073432 | M61: 87050
A62: 02 | B62: 08 | C62: 11 | D62: 2 | E62: NOWA RUDA | F62: 29736427 | G62: 18603556 | H62: 10470631 | I62: 65487 | J62: 596753 | K62: 0 | L62: 9167454 | M62: 322010
A63: 02 | B63: 08 | C63: 12 | D63: 3 | E63: RADKÓW | F63: 16971509 | G63: 11502968 | H63: 4691902 | I63: 311442 | J63: 465197 | K63: 0 | L63: 6964274 | M63: 749408
A64: 02 | B64: 08 | C64: 13 | D64: 3 | E64: STRONIE ŚLĄSKIE | F64: 11512389 | G64: 6479127 | H64: 4629341 | I64: 28789 | J64: 375132 | K64: 0 | L64: 5338881 | M64: 254637
A65: 02 | B65: 08 | C65: 14 | D65: 3 | E65: SZCZYTNA | F65: 15815381 | G65: 7401796 | H65: 8033408 | I65: 0 | J65: 380177 | K65: 0 | L65: 5676301 | M65: 71100
A66: 02 | B66: 09 | C66: 01 | D66: 1 | E66: CHOJNÓW | F66: 19860757 | G66: 13612502 | H66: 5418965 | I66: 71547 | J66: 757743 | K66: 0 | L66: 14163600 | M66: 1246387
A67: 02 | B67: 09 | C67: 02 | D67: 2 | E67: CHOJNÓW | F67: 15488463 | G67: 11041799 | H67: 3876427 | I67: 0 | J67: 570237 | K67: 0 | L67: 9987953 | M67: 413903
A68: 02 | B68: 09 | C68: 03 | D68: 2 | E68: KROTOSZYCE | F68: 5149938 | G68: 3862507 | H68: 1062253 | I68: 0 | J68: 225178 | K68: 0 | L68: 3619424 | M68: 192627
A69: 02 | B69: 09 | C69: 04 | D69: 2 | E69: KUNICE | F69: 12548543 | G69: 10853184 | H69: 1151372 | I69: 0 | J69: 543987 | K69: 0 | L69: 14054810 | M69: 1619010
A70: 02 | B70: 09 | C70: 05 | D70: 2 | E70: LEGNICKIE POLE | F70: 6532923 | G70: 6180935 | H70: 0 | I70: 0 | J70: 351988 | K70: 1579724 | L70: 8209409 | M70: 1208715
A71: 02 | B71: 09 | C71: 06 | D71: 2 | E71: MIŁKOWICE | F71: 11211006 | G71: 8671200 | H71: 2102756 | I71: 0 | J71: 437050 | K71: 0 | L71: 8893997 | M71: 588442
A72: 02 | B72: 09 | C72: 07 | D72: 3 | E72: PROCHOWICE | F72: 11497677 | G72: 9573172 | H72: 1489627 | I72: 16110 | J72: 418768 | K72: 0 | L72: 7137949 | M72: 813192
A73: 02 | B73: 09 | C73: 08 | D73: 2 | E73: RUJA | F73: 4543369 | G73: 2454032 | H73: 1907700 | I73: 0 | J73: 181637 | K73: 0 | L73: 1819584 | M73: 1862
A74: 02 | B74: 10 | C74: 01 | D74: 1 | E74: LUBAŃ | F74: 27587324 | G74: 20202040 | H74: 6147712 | I74: 0 | J74: 1237572 | K74: 0 | L74: 24172423 | M74: 1162828
A75: 02 | B75: 10 | C75: 02 | D75: 1 | E75: ŚWIERADÓW-ZDRÓJ | F75: =G75+H75+I75+J75 -> 7505168 | G75: 7221197 | H75: 0 | I75: 50410 | J75: 233561 | K75: 0 | L75: 4083864 | M75: 263304
A76: 02 | B76: 10 | C76: 03 | D76: 3 | E76: LEŚNA | F76: 23124676 | G76: 11396680 | H76: 10647449 | I76: 585752 | J76: 494795 | K76: 0 | L76: 5964166 | M76: 121428
A77: 02 | B77: 10 | C77: 04 | D77: 2 | E77: LUBAŃ | F77: 14213218 | G77: 8984701 | H77: 4848078 | I77: 0 | J77: 380439 | K77: 0 | L77: 6600926 | M77: 79219
A78: 02 | B78: 10 | C78: 05 | D78: 3 | E78: OLSZYNA | F78: 12280616 | G78: 8472874 | H78: 3417574 | I78: 24766 | J78: 365402 | K78: 0 | L78: 6028557 | M78: 120001
A79: 02 | B79: 10 | C79: 06 | D79: 2 | E79: PLATERÓWKA | F79: 2520466 | G79: 1819706 | H79: 529270 | I79: 0 | J79: 171490 | K79: 0 | L79: 1261797 | M79: 9517
A80: 02 | B80: 10 | C80: 07 | D80: 2 | E80: SIEKIERCZYN | F80: 9824741 | G80: 5623550 | H80: 3946208 | I80: 0 | J80: 254983 | K80: 0 | L80: 4157558 | M80: 53451
A81: 02 | B81: 11 | C81: 01 | D81: 1 | E81: LUBIN | F81: 94290316 | G81: 88961457 | H81: 0 | I81: 0 | J81: 5328859 | K81: 6457621 | L81: 143891589 | M81: 107583851
A82: 02 | B82: 11 | C82: 02 | D82: 2 | E82: LUBIN | F82: 17003041 | G82: 15543861 | H82: 0 | I82: 0 | J82: 1459180 | K82: 2039222 | L82: 45597548 | M82: 686962
A83: 02 | B83: 11 | C83: 03 | D83: 2 | E83: RUDNA | F83: 11421238 | G83: 10912961 | H83: 0 | I83: 0 | J83: 508277 | K83: 5033600 | L83: 11935319 | M83: 1679061
A84: 02 | B84: 11 | C84: 04 | D84: 3 | E84: ŚCINAWA | F84: 15841271 | G84: 8820272 | H84: 6381774 | I84: 56068 | J84: 583157 | K84: 0 | L84: 11016033 | M84: 402823
A85: 02 | B85: 12 | C85: 01 | D85: 3 | E85: GRYFÓW ŚLĄSKI | F85: 14331521 | G85: 7760918 | H85: 5929616 | I85: 108199 | J85: 532788 | K85: 0 | L85: 9161334 | M85: 293788
A86: 02 | B86: 12 | C86: 02 | D86: 3 | E86: LUBOMIERZ | F86: 19439487 | G86: 11190881 | H86: 7962519 | I86: 0 | J86: 286087 | K86: 0 | L86: 3246918 | M86: 21862
A87: 02 | B87: 12 | C87: 03 | D87: 3 | E87: LWÓWEK ŚLĄSKI | F87: 27845232 | G87: 17373984 | H87: 9529039 | I87: 0 | J87: 942209 | K87: 0 | L87: 15956754 | M87: 1437611
A88: 02 | B88: 12 | C88: 04 | D88: 3 | E88: MIRSK | F88: 19040390 | G88: 8656015 | H88: 9619770 | I88: 329466 | J88: 435139 | K88: 0 | L88: 5675653 | M88: 176457
A89: 02 | B89: 12 | C89: 05 | D89: 3 | E89: WLEŃ | F89: 9016263 | G89: 3854787 | H89: 4925739 | I89: 28770 | J89: 206967 | K89: 0 | L89: 2540640 | M89: 24495
A90: 02 | B90: 13 | C90: 01 | D90: 2 | E90: CIESZKÓW | F90: 11257007 | G90: 6145093 | H90: 4848005 | I90: 551 | J90: 263358 | K90: 0 | L90: 3821277 | M90: 41872
A91: 02 | B91: 13 | C91: 02 | D91: 2 | E91: KROŚNICE | F91: 12553172 | G91: 9704740 | H91: 2386853 | I91: 0 | J91: 461579 | K91: 0 | L91: 7292586 | M91: 271141
A92: 02 | B92: 13 | C92: 03 | D92: 3 | E92: MILICZ | F92: 51305666 | G92: 38858033 | H92: 11011180 | I92: 0 | J92: 1436453 | K92: 0 | L92: 27060646 | M92: 1377959
A93: 02 | B93: 14 | C93: 01 | D93: 1 | E93: OLEŚNICA | F93: 49994882 | G93: 43629123 | H93: 3924947 | I93: 71045 | J93: 2369767 | K93: 0 | L93: 52226123 | M93: 6173405
A94: 02 | B94: 14 | C94: 02 | D94: 3 | E94: BIERUTÓW | F94: 21886251 | G94: 12399951 | H94: 8892079 | I94: 60339 | J94: 533882 | K94: 0 | L94: 8171439 | M94: 423490
A95: 02 | B95: 14 | C95: 03 | D95: 2 | E95: DOBROSZYCE | F95: 14165659 | G95: 11862624 | H95: 1872511 | I95: 0 | J95: 430524 | K95: 0 | L95: 8780519 | M95: 241244
A96: 02 | B96: 14 | C96: 04 | D96: 2 | E96: DZIADOWA KŁODA | F96: 12723582 | G96: 7222350 | H96: 5253319 | I96: 0 | J96: 247913 | K96: 0 | L96: 3520368 | M96: 247866
A97: 02 | B97: 14 | C97: 05 | D97: 3 | E97: MIĘDZYBÓRZ | F97: 12117845 | G97: 8556035 | H97: 3261930 | I97: 0 | J97: 299880 | K97: 0 | L97: 4300064 | M97: 127493
A98: 02 | B98: 14 | C98: 06 | D98: 2 | E98: OLEŚNICA | F98: 21800810 | G98: 16624394 | H98: 4156355 | I98: 0 | J98: 1020061 | K98: 0 | L98: 20881141 | M98: 443765
A99: 02 | B99: 14 | C99: 07 | D99: 3 | E99: SYCÓW | F99: 27511781 | G99: 21153061 | H99: 5186711 | I99: 180181 | J99: 991828 | K99: 0 | L99: 16958907 | M99: 1967114
A100: 02 | B100: 14 | C100: 08 | D100: 3 | E100: TWARDOGÓRA | F100: 16968280 | G100: 13442439 | H100: 2266318 | I100: 408819 | J100: 850704 | K100: 0 | L100: 19580677 | M100: 1261659
A101: 02 | B101: 15 | C101: 01 | D101: 1 | E101: OŁAWA | F101: 40926687 | G101: 38392620 | H101: 0 | I101: 227761 | J101: 2306306 | K101: 0 | L101: 54644951 | M101: 4157097
A102: 02 | B102: 15 | C102: 02 | D102: 2 | E102: DOMANIÓW | F102: 15099503 | G102: 11404684 | H102: 3414722 | I102: 0 | J102: 280097 | K102: 0 | L102: 4436559 | M102: 83052
A103: 02 | B103: 15 | C103: 03 | D103: 3 | E103: JELCZ-LASKOWICE | F103: 34178566 | G103: 32477895 | H103: 0 | I103: 114756 | J103: 1585915 | K103: 0 | L103: 36817289 | M103: 5305605
A104: 02 | B104: 15 | C104: 04 | D104: 2 | E104: OŁAWA | F104: 28062366 | G104: 23640306 | H104: 3325355 | I104: 0 | J104: 1096705 | K104: 0 | L104: 27465229 | M104: 4288672
A105: 02 | B105: 16 | C105: 01 | D105: 3 | E105: CHOCIANÓW | F105: 18594265 | G105: 12924504 | H105: 4606956 | I105: 247884 | J105: 814921 | K105: 0 | L105: 18044121 | M105: 558852
A106: 02 | B106: 16 | C106: 02 | D106: 2 | E106: GAWORZYCE | F106: 8159780 | G106: 4856412 | H106: 3076883 | I106: 0 | J106: 226485 | K106: 0 | L106: 4061908 | M106: 103703
A107: 02 | B107: 16 | C107: 03 | D107: 2 | E107: GRĘBOCICE | F107: 7042304 | G107: 6726691 | H107: 0 | I107: 0 | J107: 315613 | K107: 3713053 | L107: 5775968 | M107: 82855
A108: 02 | B108: 16 | C108: 04 | D108: 3 | E108: POLKOWICE | F108: 36447131 | G108: 33998475 | H108: 0 | I108: 440060 | J108: 2008596 | K108: 31317487 | L108: 53200598 | M108: 36357834
A109: 02 | B109: 16 | C109: 05 | D109: 3 | E109: PRZEMKÓW | F109: 17879578 | G109: 10523784 | H109: 6675446 | I109: 203449 | J109: 476899 | K109: 0 | L109: 8845559 | M109: 222343
A110: 02 | B110: 16 | C110: 06 | D110: 2 | E110: RADWANICE | F110: 9454105 | G110: 7925193 | H110: 1204720 | I110: 0 | J110: 324192 | K110: 0 | L110: 7598803 | M110: 50407
A111: 02 | B111: 17 | C111: 01 | D111: 2 | E111: BORÓW | F111: 10902815 | G111: 8139941 | H111: 2475663 | I111: 0 | J111: 287211 | K111: 0 | L111: 4742851 | M111: 136816
A112: 02 | B112: 17 | C112: 02 | D112: 2 | E112: KONDRATOWICE | F112: 8817685 | G112: 5831856 | H112: 2766402 | I112: 0 | J112: 219427 | K112: 0 | L112: 2870642 | M112: 467745
A113: 02 | B113: 17 | C113: 03 | D113: 2 | E113: PRZEWORNO | F113: 10147423 | G113: 4475096 | H113: 5425610 | I113: 0 | J113: 246717 | K113: 0 | L113: 3313480 | M113: 50662
A114: 02 | B114: 17 | C114: 04 | D114: 3 | E114: STRZELIN | F114: 32979703 | G114: 30808519 | H114: 0 | I114: 811454 | J114: 1359730 | K114: 0 | L114: 27488487 | M114: 3882505
A115: 02 | B115: 17 | C115: 05 | D115: 3 | E115: WIĄZÓW | F115: 17525150 | G115: 10826598 | H115: 6316415 | I115: 0 | J115: 382137 | K115: 0 | L115: 5350366 | M115: 58473
A116: 02 | B116: 18 | C116: 01 | D116: 2 | E116: KOSTOMŁOTY | F116: 16904368 | G116: 11258150 | H116: 5238843 | I116: 0 | J116: 407375 | K116: 0 | L116: 6944823 | M116: 123441
A117: 02 | B117: 18 | C117: 02 | D117: 2 | E117: MALCZYCE | F117: 9970875 | G117: 6896380 | H117: 2737008 | I117: 0 | J117: 337487 | K117: 0 | L117: 5998618 | M117: 253418
A118: 02 | B118: 18 | C118: 03 | D118: 3 | E118: MIĘKINIA | F118: 36949254 | G118: 35170188 | H118: 317576 | I118: 0 | J118: 1461490 | K118: 0 | L118: 40660309 | M118: 4483064
A119: 02 | B119: 18 | C119: 04 | D119: 3 | E119: ŚRODA ŚLĄSKA | F119: 29036127 | G119: 25544785 | H119: 2230338 | I119: 0 | J119: 1261004 | K119: 0 | L119: 25919615 | M119: 8000065
A120: 02 | B120: 18 | C120: 05 | D120: 2 | E120: UDANIN | F120: 10044425 | G120: 6507903 | H120: 3277666 | I120: 0 | J120: 258856 | K120: 0 | L120: 3223493 | M120: 256724
A121: 02 | B121: 19 | C121: 01 | D121: 1 | E121: ŚWIDNICA | F121: 76631607 | G121: 72950578 | H121: 0 | I121: 0 | J121: 3681029 | K121: 0 | L121: 81910196 | M121: 8598713
A122: 02 | B122: 19 | C122: 02 | D122: 1 | E122: ŚWIEBODZICE | F122: 34005477 | G122: 29414956 | H122: 3140910 | I122: 0 | J122: 1449611 | K122: 0 | L122: 30900060 | M122: 3073426
A123: 02 | B123: 19 | C123: 03 | D123: 2 | E123: DOBROMIERZ | F123: 12133840 | G123: 8536206 | H123: 3292573 | I123: 28374 | J123: 276687 | K123: 0 | L123: 4100611 | M123: 38713
A124: 02 | B124: 19 | C124: 04 | D124: 3 | E124: JAWORZYNA ŚLĄSKA | F124: 19579013 | G124: 12298780 | H124: 6680697 | I124: 11040 | J124: 588496 | K124: 0 | L124: 9691904 | M124: 167941
A125: 02 | B125: 19 | C125: 05 | D125: 2 | E125: MARCINOWICE | F125: 13162676 | G125: 8783416 | H125: 4010873 | I125: 0 | J125: 368387 | K125: 0 | L125: 6322239 | M125: 50022
A126: 02 | B126: 19 | C126: 06 | D126: 3 | E126: STRZEGOM | F126: 31905439 | G126: 30403866 | H126: 0 | I126: 1703 | J126: 1499870 | K126: 0 | L126: 28953308 | M126: 3264742
A127: 02 | B127: 19 | C127: 07 | D127: 2 | E127: ŚWIDNICA | F127: 33183620 | G127: 28999341 | H127: 3019867 | I127: 0 | J127: 1164412 | K127: 0 | L127: 26354250 | M127: 330951
A128: 02 | B128: 19 | C128: 08 | D128: 3 | E128: ŻARÓW | F128: 16610143 | G128: 15846856 | H128: 0 | I128: 19369 | J128: 743918 | K128: 0 | L128: 13641888 | M128: 1474272
A129: 02 | B129: 20 | C129: 01 | D129: 3 | E129: OBORNIKI ŚLĄSKIE | F129: 27396727 | G129: 25181838 | H129: 788480 | I129: 0 | J129: 1426409 | K129: 0 | L129: 34258827 | M129: 1727430
A130: 02 | B130: 20 | C130: 02 | D130: 3 | E130: PRUSICE | F130: 14477291 | G130: 11212097 | H130: 2731046 | I130: 0 | J130: 534148 | K130: 0 | L130: 8406556 | M130: 776395
A131: 02 | B131: 20 | C131: 03 | D131: 3 | E131: TRZEBNICA | F131: 37271201 | G131: 35236272 | H131: 0 | I131: 220673 | J131: 1814256 | K131: 0 | L131: 42208956 | M131: 3780440
A132: 02 | B132: 20 | C132: 04 | D132: 2 | E132: WISZNIA MAŁA | F132: 18389284 | G132: 17275084 | H132: 261721 | I132: 0 | J132: 852479 | K132: 0 | L132: 22181752 | M132: 2013873
A133: 02 | B133: 20 | C133: 05 | D133: 2 | E133: ZAWONIA | F133: 9603235 | G133: 7562554 | H133: 1628506 | I133: 0 | J133: 412175 | K133: 0 | L133: 10329404 | M133: 144931
A134: 02 | B134: 20 | C134: 06 | D134: 3 | E134: ŻMIGRÓD | F134: 27675649 | G134: 16244222 | H134: 10374636 | I134: 237432 | J134: 819359 | K134: 0 | L134: 13944283 | M134: 491903
A135: 02 | B135: 21 | C135: 01 | D135: 1 | E135: BOGUSZÓW-GORCE | F135: 27712640 | G135: 12200697 | H135: 14618197 | I135: 104174 | J135: 789572 | K135: 0 | L135: 12663562 | M135: 226772
A136: 02 | B136: 21 | C136: 02 | D136: 1 | E136: JEDLINA-ZDRÓJ | F136: 8443776 | G136: 5373188 | H136: 2763543 | I136: 43777 | J136: 263268 | K136: 0 | L136: 4410900 | M136: 62204
A137: 02 | B137: 21 | C137: 03 | D137: 1 | E137: SZCZAWNO-ZDRÓJ | F137: 5453540 | G137: 5070095 | H137: 0 | I137: 0 | J137: 383445 | K137: 0 | L137: 10486170 | M137: 1167110
A138: 02 | B138: 21 | C138: 04 | D138: 2 | E138: CZARNY BÓR | F138: 9601724 | G138: 7798289 | H138: 1511194 | I138: 9544 | J138: 282697 | K138: 0 | L138: 5391011 | M138: 550858
A139: 02 | B139: 21 | C139: 05 | D139: 3 | E139: GŁUSZYCA | F139: =G139+H139+I139+J139 -> 14691214 | G139: 6143502 | H139: 8035614 | I139: 66365 | J139: 445733 | K139: 0 | L139: 6761076 | M139: 142368
A140: 02 | B140: 21 | C140: 06 | D140: 3 | E140: MIEROSZÓW | F140: 12800868 | G140: 8496365 | H140: 3883900 | I140: 68487 | J140: 352116 | K140: 0 | L140: 5464726 | M140: 241192
A141: 02 | B141: 21 | C141: 07 | D141: 2 | E141: STARE BOGACZOWICE | F141: 7870816 | G141: 4573704 | H141: 3041246 | I141: 0 | J141: 255866 | K141: 0 | L141: 5188304 | M141: 108091
A142: 02 | B142: 21 | C142: 08 | D142: 2 | E142: WALIM | F142: 9938527 | G142: 6632995 | H142: 2931955 | I142: 61963 | J142: 311614 | K142: 0 | L142: 5838498 | M142: 74012
A143: 02 | B143: 22 | C143: 01 | D143: 3 | E143: BRZEG DOLNY | F143: 19593929 | G143: 18532955 | H143: 0 | I143: 19763 | J143: 1041211 | K143: 0 | L143: 22748810 | M143: 3379738
A144: 02 | B144: 22 | C144: 02 | D144: 2 | E144: WIŃSKO | F144: 20103087 | G144: 10004203 | H144: 9635396 | I144: 20262 | J144: 443226 | K144: 0 | L144: 6537041 | M144: 101039
A145: 02 | B145: 22 | C145: 03 | D145: 3 | E145: WOŁÓW | F145: 40356352 | G145: 26024363 | H145: 12947132 | I145: 61727 | J145: 1323130 | K145: 0 | L145: 24701487 | M145: 672865
A146: 02 | B146: 23 | C146: 01 | D146: 2 | E146: CZERNICA | F146: 42397713 | G146: 40696880 | H146: 0 | I146: 0 | J146: 1700833 | K146: 0 | L146: 49168669 | M146: 572010
A147: 02 | B147: 23 | C147: 02 | D147: 2 | E147: DŁUGOŁĘKA | F147: 84662011 | G147: 81402473 | H147: 0 | I147: 0 | J147: 3259538 | K147: 0 | L147: 97466251 | M147: 6658647
A148: 02 | B148: 23 | C148: 03 | D148: 2 | E148: JORDANÓW ŚLĄSKI | F148: 7582130 | G148: 5517833 | H148: 1856720 | I148: 0 | J148: 207577 | K148: 0 | L148: 3487233 | M148: 162218
A149: 02 | B149: 23 | C149: 04 | D149: 3 | E149: KĄTY WROCŁAWSKIE | F149: 47301058 | G149: 45044609 | H149: 0 | I149: 0 | J149: 2256449 | K149: 2884847 | L149: 63043302 | M149: 12122765
A150: 02 | B150: 23 | C150: 05 | D150: 2 | E150: KOBIERZYCE | F150: 50259582 | G150: 47778156 | H150: 0 | I150: 0 | J150: 2481426 | K150: 42986599 | L150: 95541579 | M150: 40858140
A151: 02 | B151: 23 | C151: 06 | D151: 2 | E151: MIETKÓW | F151: 6465640 | G151: 4809214 | H151: 1430334 | I151: 0 | J151: 226092 | K151: 0 | L151: 3758826 | M151: 55701
A152: 02 | B152: 23 | C152: 07 | D152: 3 | E152: SOBÓTKA | F152: 24364745 | G152: 22160781 | H152: 1302008 | I152: 78116 | J152: 823840 | K152: 0 | L152: 16703277 | M152: 1356175
A153: 02 | B153: 23 | C153: 08 | D153: 3 | E153: SIECHNICE | F153: 55083811 | G153: 52776636 | H153: 0 | I153: 0 | J153: 2307175 | K153: 964921 | L153: 67908697 | M153: 5531814
A154: 02 | B154: 23 | C154: 09 | D154: 2 | E154: ŻÓRAWINA | F154: 22907217 | G154: 21448291 | H154: 482497 | I154: 0 | J154: 976429 | K154: 0 | L154: 27302187 | M154: 2017593
A155: 02 | B155: 24 | C155: 01 | D155: 3 | E155: BARDO | F155: 6621237 | G155: 5290398 | H155: 1028567 | I155: 5327 | J155: 296945 | K155: 0 | L155: 5012459 | M155: 2860431
A156: 02 | B156: 24 | C156: 02 | D156: 2 | E156: CIEPŁOWODY | F156: 6435915 | G156: 3128085 | H156: 3113063 | I156: 0 | J156: 194767 | K156: 0 | L156: 2232073 | M156: 118599
A157: 02 | B157: 24 | C157: 03 | D157: 3 | E157: KAMIENIEC ZĄBKOWICKI | F157: 10682711 | G157: 7283737 | H157: 2940244 | I157: 0 | J157: 458730 | K157: 0 | L157: 8868424 | M157: 133961
A158: 02 | B158: 24 | C158: 04 | D158: 2 | E158: STOSZOWICE | F158: 10637774 | G158: 5655856 | H158: 4686538 | I158: 0 | J158: 295380 | K158: 0 | L158: 4817101 | M158: 46152
A159: 02 | B159: 24 | C159: 05 | D159: 3 | E159: ZĄBKOWICE ŚLĄSKIE | F159: 28455411 | G159: 24552214 | H159: 2427506 | I159: 163565 | J159: 1312126 | K159: 0 | L159: 25672105 | M159: 2521860
A160: 02 | B160: 24 | C160: 06 | D160: 3 | E160: ZIĘBICE | F160: 32274688 | G160: 16174956 | H160: 14948772 | I160: 275127 | J160: 875833 | K160: 0 | L160: 12618582 | M160: 463463
A161: 02 | B161: 24 | C161: 07 | D161: 3 | E161: ZŁOTY STOK | F161: 8671803 | G161: 4639448 | H161: 3754373 | I161: 38224 | J161: 239758 | K161: 0 | L161: 4087975 | M161: 46112
A162: 02 | B162: 25 | C162: 01 | D162: 1 | E162: ZAWIDÓW | F162: 6559077 | G162: 4364291 | H162: 1954508 | I162: 0 | J162: 240278 | K162: 0 | L162: 4917980 | M162: 107479
A163: 02 | B163: 25 | C163: 02 | D163: 1 | E163: ZGORZELEC | F163: 38562269 | G163: 33181048 | H163: 3419655 | I163: 0 | J163: 1961566 | K163: 0 | L163: 42940227 | M163: 3926933
A164: 02 | B164: 25 | C164: 03 | D164: 3 | E164: BOGATYNIA | F164: 26701174 | G164: 25178304 | H164: 0 | I164: 108863 | J164: 1414007 | K164: 12197867 | L164: 30147939 | M164: 13589567
A165: 02 | B165: 25 | C165: 04 | D165: 3 | E165: PIEŃSK | F165: 16069894 | G165: 7413754 | H165: 8152215 | I165: 37196 | J165: 466729 | K165: 0 | L165: 6361598 | M165: 74580
A166: 02 | B166: 25 | C166: 05 | D166: 2 | E166: SULIKÓW | F166: 8398979 | G166: 6567973 | H166: 1509612 | I166: 0 | J166: 321394 | K166: 0 | L166: 5178779 | M166: 577983
A167: 02 | B167: 25 | C167: 06 | D167: 3 | E167: WĘGLINIEC | F167: 18748948 | G167: 10481451 | H167: 7810710 | I167: 25128 | J167: 431659 | K167: 0 | L167: 6213455 | M167: 454804
A168: 02 | B168: 25 | C168: 07 | D168: 2 | E168: ZGORZELEC | F168: 12686641 | G168: 10221914 | H168: 1955089 | I168: 0 | J168: 509638 | K168: 0 | L168: 9089221 | M168: 248274
A169: 02 | B169: 26 | C169: 01 | D169: 1 | E169: WOJCIESZÓW | F169: 7918918 | G169: 4783699 | H169: 2931253 | I169: 0 | J169: 203966 | K169: 0 | L169: 2573771 | M169: 184918
A170: 02 | B170: 26 | C170: 02 | D170: 1 | E170: ZŁOTORYJA | F170: 18197337 | G170: 13785542 | H170: 3292372 | I170: 184087 | J170: 935336 | K170: 0 | L170: 19808167 | M170: 924307
A171: 02 | B171: 26 | C171: 03 | D171: 2 | E171: PIELGRZYMKA | F171: 9623685 | G171: 5579990 | H171: 3802164 | I171: 0 | J171: 241531 | K171: 0 | L171: 4230093 | M171: 71480
A172: 02 | B172: 26 | C172: 04 | D172: 3 | E172: ŚWIERZAWA | F172: 17347319 | G172: 9934091 | H172: 7029300 | I172: 14267 | J172: 369661 | K172: 0 | L172: 4483831 | M172: 191667
A173: 02 | B173: 26 | C173: 05 | D173: 2 | E173: ZAGRODNO | F173: 6302203 | G173: 4483862 | H173: 1549499 | I173: 0 | J173: 268842 | K173: 0 | L173: 3835055 | M173: 71187
A174: 02 | B174: 26 | C174: 06 | D174: 2 | E174: ZŁOTORYJA | F174: 12483444 | G174: 8472531 | H174: 3533916 | I174: 74545 | J174: 402452 | K174: 0 | L174: 6810331 | M174: 323065
A175: 02 | B175: 61 | C175: 01 | D175: 1 | E175: Jelenia Góra | F175: 97175480 | G175: 87489338 | H175: 4826592 | I175: 0 | J175: 4859550 | K175: 0 | L175: 99836024 | M175: 12153020
A176: 02 | B176: 62 | C176: 01 | D176: 1 | E176: Legnica | F176: 109982702 | G176: 103198912 | H176: 0 | I176: 554518 | J176: 6229272 | K176: 0 | L176: 139933601 | M176: 17219212
A177: 02 | B177: 64 | C177: 01 | D177: 1 | E177: Wrocław | F177: 758358946 | G177: 703763259 | H177: 0 | I177: 0 | J177: 54595687 | K177: 0 | L177: 1608800468 | M177: 274142251
A178: 02 | B178: 65 | C178: 01 | D178: 1 | E178: Wałbrzych | F178: 149745039 | G178: 102262494 | H178: 39783664 | I178: 1614433 | J178: 6084448 | K178: 0 | L178: 111663213 | M178: 13281049
A179: 04 | B179: 01 | C179: 01 | D179: 1 | E179: ALEKSANDRÓW KUJAWSKI | F179: 23794094 | G179: 15571876 | H179: 7480399 | I179: 84905 | J179: 656914 | K179: 0 | L179: 10225097 | M179: 1112671
A180: 04 | B180: 01 | C180: 02 | D180: 1 | E180: CIECHOCINEK | F180: 10747189 | G180: 9066433 | H180: 1003046 | I180: 8829 | J180: 668881 | K180: 0 | L180: 14254546 | M180: 992081
A181: 04 | B181: 01 | C181: 03 | D181: 1 | E181: NIESZAWA | F181: 2564076 | G181: 2354185 | H181: 0 | I181: 0 | J181: 209891 | K181: 0 | L181: 2913070 | M181: 21048
A182: 04 | B182: 01 | C182: 04 | D182: 2 | E182: ALEKSANDRÓW KUJAWSKI | F182: 25568302 | G182: 13796017 | H182: 10731629 | I182: 373346 | J182: 667310 | K182: 0 | L182: 10154389 | M182: 285233
A183: 04 | B183: 01 | C183: 05 | D183: 2 | E183: BĄDKOWO | F183: 9560830 | G183: 5655112 | H183: 3689283 | I183: 0 | J183: 216435 | K183: 0 | L183: 3149218 | M183: 33798
A184: 04 | B184: 01 | C184: 06 | D184: 2 | E184: KONECK | F184: 9321656 | G184: 5893332 | H184: 3229994 | I184: 0 | J184: 198330 | K184: 0 | L184: 2426406 | M184: 149425
A185: 04 | B185: 01 | C185: 07 | D185: 2 | E185: RACIĄŻEK | F185: 7586026 | G185: 4084759 | H185: 3307504 | I185: 0 | J185: 193763 | K185: 0 | L185: 2185408 | M185: 22365
A186: 04 | B186: 01 | C186: 08 | D186: 2 | E186: WAGANIEC | F186: 11335380 | G186: 7143223 | H186: 3955025 | I186: 8295 | J186: 228837 | K186: 0 | L186: 2692763 | M186: 82179
A187: 04 | B187: 01 | C187: 09 | D187: 2 | E187: ZAKRZEWO | F187: 9451223 | G187: 7043805 | H187: 2228021 | I187: 0 | J187: 179397 | K187: 0 | L187: 1955491 | M187: 135988
A188: 04 | B188: 02 | C188: 01 | D188: 1 | E188: BRODNICA | F188: 52044532 | G188: 47910604 | H188: 2255022 | I188: 79317 | J188: 1799589 | K188: 0 | L188: 34516001 | M188: 5274061
A189: 04 | B189: 02 | C189: 02 | D189: 2 | E189: BOBROWO | F189: 20560414 | G189: 12689129 | H189: 7569141 | I189: 0 | J189: 302144 | K189: 0 | L189: 3294265 | M189: 69242
A190: 04 | B190: 02 | C190: 03 | D190: 2 | E190: BRODNICA | F190: 17251954 | G190: 11998647 | H190: 4687987 | I190: 0 | J190: 565320 | K190: 0 | L190: 11823992 | M190: 81470
A191: 04 | B191: 02 | C191: 04 | D191: 2 | E191: BRZOZIE | F191: 11906614 | G191: 7242895 | H191: 4463480 | I191: 0 | J191: 200239 | K191: 0 | L191: 2664634 | M191: 132640
A192: 04 | B192: 02 | C192: 05 | D192: 3 | E192: GÓRZNO | F192: 12717020 | G192: 8841527 | H192: 3671492 | I192: 0 | J192: 204001 | K192: 0 | L192: 2732827 | M192: 209705
A193: 04 | B193: 02 | C193: 06 | D193: 2 | E193: BARTNICZKA | F193: 10691882 | G193: 6075518 | H193: 4377486 | I193: 0 | J193: 238878 | K193: 0 | L193: 2964186 | M193: 542734
A194: 04 | B194: 02 | C194: 07 | D194: 3 | E194: JABŁONOWO POMORSKIE | F194: 23546742 | G194: 13022383 | H194: 9673704 | I194: 414206 | J194: 436449 | K194: 0 | L194: 5056279 | M194: 497648
A195: 04 | B195: 02 | C195: 08 | D195: 2 | E195: OSIEK | F195: 9055821 | G195: 5587360 | H195: 3267775 | I195: 0 | J195: 200686 | K195: 0 | L195: 2481836 | M195: 411339
A196: 04 | B196: 02 | C196: 09 | D196: 2 | E196: ŚWIEDZIEBNIA | F196: 13634020 | G196: 6836305 | H196: 6535102 | I196: 0 | J196: 262613 | K196: 0 | L196: 3981102 | M196: 21039
A197: 04 | B197: 02 | C197: 10 | D197: 2 | E197: ZBICZNO | F197: 13092997 | G197: 7543266 | H197: 5277507 | I197: 0 | J197: 272224 | K197: 0 | L197: 4053045 | M197: 37784
A198: 04 | B198: 03 | C198: 01 | D198: 2 | E198: BIAŁE BŁOTA | F198: 53165992 | G198: 51165985 | H198: 0 | I198: 74802 | J198: 1925205 | K198: 0 | L198: 55545457 | M198: 5232704
A199: 04 | B199: 03 | C199: 02 | D199: 2 | E199: DĄBROWA CHEŁMIŃSKA | F199: 20103046 | G199: 13551373 | H199: 6041751 | I199: 0 | J199: 509922 | K199: 0 | L199: 9181640 | M199: 445966
A200: 04 | B200: 03 | C200: 03 | D200: 2 | E200: DOBRCZ | F200: 30248811 | G200: 23755258 | H200: 5734798 | I200: 0 | J200: 758755 | K200: 0 | L200: 15257138 | M200: 267556
A201: 04 | B201: 03 | C201: 04 | D201: 3 | E201: KORONOWO | F201: 50162859 | G201: 31026975 | H201: 16972603 | I201: 814579 | J201: 1348702 | K201: 0 | L201: 22756146 | M201: 1072130
A202: 04 | B202: 03 | C202: 05 | D202: 2 | E202: NOWA WIEŚ WIELKA | F202: 19603813 | G202: 16825517 | H202: 2076570 | I202: 0 | J202: 701726 | K202: 0 | L202: 16236518 | M202: 2376430
A203: 04 | B203: 03 | C203: 06 | D203: 2 | E203: OSIELSKO | F203: =G203+H203+I203+J203 -> 32022547 | G203: 30234136 | H203: 0 | I203: 0 | J203: 1788411 | K203: 1750388 | L203: 61776809 | M203: 2021812
... 2283 more rows
